[Event "*** Titled Tuesday 3|2 Blitz"]
[Site "Chess.com"]
[Date "2015.08.04"]
[Round "2"]
[White "stepanosinovsky"]
[Black "alturas_pacificas"]
[Result "1/2-1/2"]
[WhiteElo "2272"]
[BlackElo "2086"]
[TimeControl "180+2"]
[EndTime "11:50:46 PDT"]
[Termination "Game drawn by stalemate"]

1. e4 {[%clk 0:03:01.9]} 1... c6 {[%clk 0:02:58.5]} 2. d3 {[%clk 0:03:01.4]}
2... d5 {[%clk 0:02:59.8]} 3. Nd2 {[%clk 0:03:02.9]} 3... dxe4 {[%clk
0:02:59.5]} 4. dxe4 {[%clk 0:03:04]} 4... Nf6 {[%clk 0:02:56.8]} 5. Ngf3 {[%clk
0:03:04.2]} 5... Bg4 {[%clk 0:02:51.7]} 6. h3 {[%clk 0:03:04.7]} 6... Bxf3
{[%clk 0:02:52.8]} 7. Qxf3 {[%clk 0:03:05.4]} 7... Nbd7 {[%clk 0:02:53]} 8. g4
{[%clk 0:02:24.8]} 8... e6 {[%clk 0:02:47.4]} 9. g5 {[%clk 0:02:21.1]} 9... Ng8
{[%clk 0:02:48.2]} 10. h4 {[%clk 0:02:15.6]} 10... Qa5 {[%clk 0:02:38.7]} 11. c3
{[%clk 0:02:06.5]} 11... Ne7 {[%clk 0:02:22]} 12. Nc4 {[%clk 0:02:06.5]} 12...
Qc7 {[%clk 0:02:11.1]} 13. Bf4 {[%clk 0:02:04.2]} 13... e5 {[%clk 0:02:12]} 14.
O-O-O {[%clk 0:02:00.6]} 14... Ng6 {[%clk 0:02:05.1]} 15. Bg3 {[%clk 0:01:28.9]}
15... b5 {[%clk 0:02:04.9]} 16. Bh3 {[%clk 0:01:00.3]} 16... O-O-O {[%clk
0:02:01.9]} 17. Rxd7 {[%clk 0:00:49.8]} 17... Rxd7 {[%clk 0:01:58]} 18. Rd1
{[%clk 0:00:49.9]} 18... bxc4 {[%clk 0:01:12.4]} 19. Qxf7 {[%clk 0:00:49]} 19...
Bd6 {[%clk 0:01:05.2]} 20. h5 {[%clk 0:00:38]} 20... Ne7 {[%clk 0:00:42.9]} 21.
Qxg7 {[%clk 0:00:27.5]} 21... Rd8 {[%clk 0:00:39.1]} 22. g6 {[%clk 0:00:19.4]}
22... hxg6 {[%clk 0:00:37.2]} 23. h6 {[%clk 0:00:20.6]} 23... Nf5 {[%clk
0:00:25.1]} 24. Qxg6 {[%clk 0:00:17.4]} 24... Nxg3 {[%clk 0:00:23.3]} 25. fxg3
{[%clk 0:00:18.2]} 25... Kb7 {[%clk 0:00:20.2]} 26. Bxd7 {[%clk 0:00:10.7]}
26... Rxd7 {[%clk 0:00:22.1]} 27. h7 {[%clk 0:00:11.8]} 27... Rxh7 {[%clk
0:00:20.7]} 28. Rxd6 {[%clk 0:00:12.4]} 28... Rg7 {[%clk 0:00:20.9]} 29. Qf6
{[%clk 0:00:11.6]} 29... Rxg3 {[%clk 0:00:15.5]} 30. Qxe5 {[%clk 0:00:12.6]}
30... Rg7 {[%clk 0:00:15.4]} 31. Qd4 {[%clk 0:00:12.4]} 31... Re7 {[%clk
0:00:10.5]} 32. e5 {[%clk 0:00:13.3]} 32... a6 {[%clk 0:00:09]} 33. e6 {[%clk
0:00:14.1]} 33... Kc8 {[%clk 0:00:08.2]} 34. a3 {[%clk 0:00:14]} 34... a5 {[%clk
0:00:08.9]} 35. Qh8+ {[%clk 0:00:14.8]} 35... Kb7 {[%clk 0:00:10.1]} 36. Qd4
{[%clk 0:00:15.6]} 36... Kc8 {[%clk 0:00:11.5]} 37. Kb1 {[%clk 0:00:15.4]} 37...
a4 {[%clk 0:00:10]} 38. Qh8+ {[%clk 0:00:15.9]} 38... Kb7 {[%clk 0:00:11.2]} 39.
Qe5 {[%clk 0:00:16.7]} 39... c5 {[%clk 0:00:10.4]} 40. Qd5+ {[%clk 0:00:17.5]}
40... Kb8 {[%clk 0:00:10.7]} 41. Rd8+ {[%clk 0:00:17.9]} 41... Ka7 {[%clk
0:00:11]} 42. Qa8+ {[%clk 0:00:17.9]} 42... Kb6 {[%clk 0:00:12.4]} 43. Rb8+
{[%clk 0:00:19.1]} 43... Qb7 {[%clk 0:00:13.8]} 44. Rxb7+ {[%clk 0:00:19.5]}
44... Rxb7 {[%clk 0:00:15.7]} 45. Qxb7+ {[%clk 0:00:20.8]} 45... Ka5 {[%clk
0:00:15.8]} 46. e7 {[%clk 0:00:22.7]} 1/2-1/2

[Event "*** Titled Tuesday 3|2 Blitz"]
[Site "Chess.com"]
[Date "2015.08.04"]
[Round "2"]
[White "MattyDPerrine"]
[Black "darkknight123456"]
[Result "1-0"]
[WhiteElo "2246"]
[BlackElo "2077"]
[TimeControl "180+2"]
[EndTime "11:50:47 PDT"]
[Termination "MattyDPerrine won on time"]

1. d4 {[%clk 0:02:44.7]} 1... Nf6 {[%clk 0:03:00.3]} 2. c4 {[%clk 0:02:43.3]}
2... c5 {[%clk 0:03:00.9]} 3. Nf3 {[%clk 0:02:41.6]} 3... cxd4 {[%clk
0:03:01.1]} 4. Nxd4 {[%clk 0:02:43.5]} 4... Nc6 {[%clk 0:03:02]} 5. Nc3 {[%clk
0:02:44.2]} 5... g6 {[%clk 0:03:02.4]} 6. g3 {[%clk 0:02:43.9]} 6... Bg7 {[%clk
0:03:03.2]} 7. Bg2 {[%clk 0:02:45.2]} 7... O-O {[%clk 0:03:04]} 8. O-O {[%clk
0:02:45.8]} 8... Qb6 {[%clk 0:03:04.7]} 9. Nb3 {[%clk 0:02:42.8]} 9... d6 {[%clk
0:03:05.5]} 10. Be3 {[%clk 0:02:33.2]} 10... Qd8 {[%clk 0:03:03.4]} 11. h3
{[%clk 0:02:31.6]} 11... Be6 {[%clk 0:02:58.1]} 12. Nd5 {[%clk 0:02:32.5]} 12...
Nd7 {[%clk 0:02:29.1]} 13. Qd2 {[%clk 0:02:23.1]} 13... a5 {[%clk 0:02:06.3]}
14. Rac1 {[%clk 0:02:10.3]} 14... a4 {[%clk 0:02:05.2]} 15. Nd4 {[%clk
0:02:10.1]} 15... Nxd4 {[%clk 0:01:29.1]} 16. Bxd4 {[%clk 0:02:09.1]} 16... Ne5
{[%clk 0:01:22.9]} 17. Rfd1 {[%clk 0:01:11.7]} 17... Re8 {[%clk 0:00:44.7]} 18.
Bb6 {[%clk 0:00:50.1]} 18... Qd7 {[%clk 0:00:39]} 19. Kh2 {[%clk 0:00:43.6]}
19... Rac8 {[%clk 0:00:24.1]} 20. b3 {[%clk 0:00:31.5]} 20... axb3 {[%clk
0:00:19.8]} 21. axb3 {[%clk 0:00:33.4]} 21... Bxd5 {[%clk 0:00:16.6]} 22. Qxd5
{[%clk 0:00:30]} 22... Nc6 {[%clk 0:00:16.6]} 23. Qb5 {[%clk 0:00:29.2]} 23...
Ra8 {[%clk 0:00:16.5]} 24. Be3 {[%clk 0:00:17.5]} 24... Ra6 {[%clk 0:00:16.3]}
25. Rc2 {[%clk 0:00:12.3]} 25... Rea8 {[%clk 0:00:16.3]} 26. c5 {[%clk
0:00:08.3]} 26... Ra5 {[%clk 0:00:09.6]} 27. Qc4 {[%clk 0:00:08.8]} 27... Ne5
{[%clk 0:00:09.1]} 28. Qe4 {[%clk 0:00:08.7]} 28... Qe6 {[%clk 0:00:06.3]} 29.
Qxb7 {[%clk 0:00:06.9]} 29... R5a7 {[%clk 0:00:04.8]} 30. Qd5 {[%clk 0:00:07.4]}
30... Qxd5 {[%clk 0:00:03.5]} 31. Bxd5 {[%clk 0:00:09.3]} 31... Rd8 {[%clk
0:00:03.8]} 32. cxd6 {[%clk 0:00:09.6]} 32... Rxd6 {[%clk 0:00:04.4]} 33. Bxa7
{[%clk 0:00:10.5]} 33... Ra6 {[%clk 0:00:02.5]} 34. Rc8+ {[%clk 0:00:11.3]}
34... Bf8 {[%clk 0:00:03.1]} 35. Be3 {[%clk 0:00:12.1]} 35... Ra2 {[%clk
0:00:03.6]} 36. Bh6 {[%clk 0:00:12.8]} 36... Nd7 {[%clk 0:00:04.6]} 37. Bc6
{[%clk 0:00:12.5]} 37... Rxe2 {[%clk 0:00:04.4]} 38. Rxd7 {[%clk 0:00:12.6]}
38... Rxf2+ {[%clk 0:00:05.6]} 39. Kg1 {[%clk 0:00:13.9]} 1-0

[Event "*** Titled Tuesday 3|2 Blitz"]
[Site "Chess.com"]
[Date "2015.08.04"]
[Round "2"]
[White "eugeniusjr"]
[Black "Fawolizzo"]
[Result "1-0"]
[WhiteElo "1961"]
[BlackElo "1882"]
[TimeControl "180+2"]
[EndTime "11:51:02 PDT"]
[Termination "eugeniusjr won by resignation"]

1. c4 {[%clk 0:03:01.9]} 1... c5 {[%clk 0:02:57]} 2. g3 {[%clk 0:03:03.2]} 2...
Nf6 {[%clk 0:02:56.4]} 3. Bg2 {[%clk 0:03:03.9]} 3... d5 {[%clk 0:02:57.1]} 4.
cxd5 {[%clk 0:03:04.4]} 4... Nxd5 {[%clk 0:02:57.3]} 5. Nc3 {[%clk 0:03:06.3]}
5... Nc7 {[%clk 0:02:57]} 6. Nf3 {[%clk 0:03:04.7]} 6... Nc6 {[%clk 0:02:57.7]}
7. O-O {[%clk 0:03:06.1]} 7... e5 {[%clk 0:02:58.4]} 8. d3 {[%clk 0:03:06.8]}
8... Be7 {[%clk 0:02:59]} 9. Be3 {[%clk 0:03:07.3]} 9... O-O {[%clk 0:02:59.6]}
10. a4 {[%clk 0:02:59.4]} 10... b6 {[%clk 0:02:49.6]} 11. a5 {[%clk 0:02:52.1]}
11... Nxa5 {[%clk 0:02:45.5]} 12. Nxe5 {[%clk 0:02:47.6]} 12... Be6 {[%clk
0:02:43.3]} 13. Rxa5 {[%clk 0:02:25.2]} 13... bxa5 {[%clk 0:02:39.2]} 14. Nc6
{[%clk 0:02:26.6]} 14... Qd7 {[%clk 0:02:35.4]} 15. Nxe7+ {[%clk 0:02:23.3]}
15... Qxe7 {[%clk 0:02:36.3]} 16. Bxa8 {[%clk 0:02:24.3]} 16... Nxa8 {[%clk
0:02:34.3]} 17. Qa4 {[%clk 0:02:22.1]} 17... Bh3 {[%clk 0:02:33.3]} 18. Rb1
{[%clk 0:02:02.2]} 18... Qb7 {[%clk 0:02:21]} 19. f3 {[%clk 0:01:59.6]} 19...
Qb4 {[%clk 0:02:10.4]} 20. Qxb4 {[%clk 0:01:31.7]} 20... axb4 {[%clk 0:02:09.7]}
21. Ne4 {[%clk 0:01:27.6]} 21... c4 {[%clk 0:01:53.8]} 22. dxc4 {[%clk
0:01:21.5]} 22... Be6 {[%clk 0:01:53]} 23. b3 {[%clk 0:01:15.1]} 23... Bf5
{[%clk 0:01:48.6]} 24. Kf2 {[%clk 0:00:51.2]} 24... Nc7 {[%clk 0:01:45.7]} 25.
Ra1 {[%clk 0:00:44.8]} 25... a6 {[%clk 0:01:41.4]} 26. Nc5 {[%clk 0:00:35.8]}
26... Ra8 {[%clk 0:01:33]} 27. Ra4 {[%clk 0:00:35.2]} 27... a5 {[%clk
0:01:28.9]} 28. g4 {[%clk 0:00:32.2]} 28... Bc2 {[%clk 0:01:25.9]} 29. Ra2
{[%clk 0:00:32.1]} 29... Bxb3 {[%clk 0:01:23.5]} 30. Nxb3 {[%clk 0:00:32.3]}
30... a4 {[%clk 0:01:24.7]} 31. Nd4 {[%clk 0:00:28.4]} 31... b3 {[%clk
0:01:22.4]} 32. Rb2 {[%clk 0:00:24.3]} 32... h6 {[%clk 0:01:13.6]} 33. Bc1
{[%clk 0:00:24.3]} 33... Na6 {[%clk 0:01:08.4]} 34. Nxb3 {[%clk 0:00:22.9]}
34... axb3 {[%clk 0:01:05.9]} 35. Rxb3 {[%clk 0:00:24.8]} 35... Nc5 {[%clk
0:01:05.9]} 36. Rc3 {[%clk 0:00:24.6]} 36... Rc8 {[%clk 0:00:56.8]} 37. Be3
{[%clk 0:00:24.6]} 37... Na4 {[%clk 0:00:56.2]} 38. Rc2 {[%clk 0:00:23.8]} 38...
f6 {[%clk 0:00:55.6]} 39. c5 {[%clk 0:00:23.7]} 39... Kf7 {[%clk 0:00:55.6]} 40.
Bd4 {[%clk 0:00:23.6]} 40... Ke6 {[%clk 0:00:55.6]} 41. e4 {[%clk 0:00:21.9]}
41... Kd7 {[%clk 0:00:48.7]} 42. Ke3 {[%clk 0:00:21.4]} 42... Kc6 {[%clk
0:00:49.3]} 43. Ra2 {[%clk 0:00:20.6]} 43... Nxc5 {[%clk 0:00:47.6]} 44. Rc2
{[%clk 0:00:21.1]} 44... Kb5 {[%clk 0:00:48]} 45. Bxc5 {[%clk 0:00:19.8]} 45...
Rxc5 {[%clk 0:00:48.2]} 46. Rxc5+ {[%clk 0:00:21.7]} 46... Kxc5 {[%clk
0:00:49.2]} 47. Kf4 {[%clk 0:00:23.3]} 47... Kd6 {[%clk 0:00:45.7]} 48. Kf5
{[%clk 0:00:23.9]} 48... Ke7 {[%clk 0:00:46.8]} 49. Kg6 {[%clk 0:00:24.3]} 49...
Kf8 {[%clk 0:00:47.1]} 50. h4 {[%clk 0:00:24.7]} 50... Kg8 {[%clk 0:00:46.6]}
51. f4 {[%clk 0:00:25.1]} 51... Kf8 {[%clk 0:00:47.2]} 52. e5 {[%clk 0:00:26]}
52... fxe5 {[%clk 0:00:40.6]} 53. fxe5 {[%clk 0:00:27.9]} 53... Kg8 {[%clk
0:00:39.2]} 54. e6 {[%clk 0:00:26.6]} 54... Kf8 {[%clk 0:00:40]} 55. h5 {[%clk
0:00:27.5]} 55... Ke7 {[%clk 0:00:39.2]} 56. Kxg7 {[%clk 0:00:28.4]} 56... Kxe6
{[%clk 0:00:40.1]} 57. Kxh6 {[%clk 0:00:29.9]} 57... Kf6 {[%clk 0:00:40.6]} 58.
g5+ {[%clk 0:00:30.9]} 58... Kf7 {[%clk 0:00:41.6]} 59. Kh7 {[%clk 0:00:31.1]}
1-0

[Event "*** Titled Tuesday 3|2 Blitz"]
[Site "Chess.com"]
[Date "2015.08.04"]
[Round "2"]
[White "AungTZ"]
[Black "HZMC92"]
[Result "1/2-1/2"]
[WhiteElo "2089"]
[BlackElo "2270"]
[TimeControl "180+2"]
[EndTime "11:51:03 PDT"]
[Termination "Game drawn by agreement"]

1. e4 {[%clk 0:03:01.9]} 1... c5 {[%clk 0:03:00.1]} 2. Nf3 {[%clk 0:03:02.2]}
2... d6 {[%clk 0:03:01.3]} 3. d4 {[%clk 0:02:57.5]} 3... cxd4 {[%clk 0:03:03.2]}
4. Nxd4 {[%clk 0:02:58.5]} 4... Nf6 {[%clk 0:03:04.9]} 5. Nc3 {[%clk 0:02:58.7]}
5... g6 {[%clk 0:03:06.3]} 6. Be2 {[%clk 0:02:56.5]} 6... Bg7 {[%clk 0:03:07.7]}
7. Be3 {[%clk 0:02:57.7]} 7... O-O {[%clk 0:03:07.9]} 8. Nb3 {[%clk 0:02:46.1]}
8... Nc6 {[%clk 0:03:08.7]} 9. O-O {[%clk 0:02:45.1]} 9... a5 {[%clk 0:03:10]}
10. a4 {[%clk 0:02:44.8]} 10... Be6 {[%clk 0:03:10.4]} 11. Nd4 {[%clk
0:02:44.5]} 11... Nxd4 {[%clk 0:03:06.2]} 12. Bxd4 {[%clk 0:02:36.4]} 12... Rc8
{[%clk 0:03:08.1]} 13. f4 {[%clk 0:02:34.1]} 13... Bc4 {[%clk 0:03:08.7]} 14.
Bxc4 {[%clk 0:02:19.3]} 14... Rxc4 {[%clk 0:03:10.6]} 15. e5 {[%clk 0:02:16.8]}
15... dxe5 {[%clk 0:03:08.1]} 16. Bxe5 {[%clk 0:02:18]} 16... Qb6+ {[%clk
0:03:09.1]} 17. Kh1 {[%clk 0:02:15.1]} 17... Rd8 {[%clk 0:03:05.1]} 18. Qc1
{[%clk 0:02:09.9]} 18... Ng4 {[%clk 0:03:03]} 19. Bxg7 {[%clk 0:02:07.6]} 19...
Nf2+ {[%clk 0:02:56.4]} 20. Rxf2 {[%clk 0:02:07.4]} 20... Qxf2 {[%clk
0:02:58.3]} 21. b3 {[%clk 0:01:43.1]} 21... Rc6 {[%clk 0:02:48]} 22. Be5 {[%clk
0:01:33.4]} 22... f6 {[%clk 0:02:44.8]} 23. Ne4 {[%clk 0:01:32.4]} 23... Qxc2
{[%clk 0:02:37]} 24. Qxc2 {[%clk 0:01:30.3]} 24... Rxc2 {[%clk 0:02:38.9]} 25.
Bc3 {[%clk 0:00:37.4]} 25... f5 {[%clk 0:02:38.8]} 26. Bxa5 {[%clk 0:00:38.2]}
26... Rdc8 {[%clk 0:02:19.2]} 27. Nc3 {[%clk 0:00:36.3]} 27... R2xc3 {[%clk
0:01:54.3]} 28. Bxc3 {[%clk 0:00:36.4]} 28... Rxc3 {[%clk 0:01:56.2]} 29. Rb1
{[%clk 0:00:38]} 29... Kf7 {[%clk 0:01:51]} 30. b4 {[%clk 0:00:36.7]} 30... Ra3
{[%clk 0:01:48.8]} 31. a5 {[%clk 0:00:37.1]} 31... Ke6 {[%clk 0:01:50]} 32. h3
{[%clk 0:00:37.6]} 32... Kd5 {[%clk 0:01:48.9]} 33. Re1 {[%clk 0:00:34]} 33...
e6 {[%clk 0:01:48.8]} 34. Re5+ {[%clk 0:00:34.9]} 34... Kd6 {[%clk 0:01:49.6]}
35. Rb5 {[%clk 0:00:35.9]} 35... Kc7 {[%clk 0:01:44.6]} 36. Rb6 {[%clk
0:00:36.8]} 36... Re3 {[%clk 0:01:45.7]} 37. Kg1 {[%clk 0:00:35.6]} 37... h5
{[%clk 0:01:45.1]} 38. Kf2 {[%clk 0:00:35.8]} 38... Re4 {[%clk 0:01:46.4]} 39.
g3 {[%clk 0:00:37]} 39... h4 {[%clk 0:01:47.4]} 40. Kf3 {[%clk 0:00:36.6]} 40...
hxg3 {[%clk 0:01:46.1]} 41. Kxg3 {[%clk 0:00:37.8]} 41... Kc8 {[%clk 0:01:41.7]}
42. Kf3 {[%clk 0:00:38.3]} 42... Kc7 {[%clk 0:01:42.7]} 43. h4 {[%clk
0:00:34.8]} 43... Re1 {[%clk 0:01:39.9]} 44. Kf2 {[%clk 0:00:31.4]} 44... Re4
{[%clk 0:01:40.7]} 45. Kf3 {[%clk 0:00:32.6]} 45... Kc8 {[%clk 0:01:41.4]} 46.
b5 {[%clk 0:00:25.6]} 46... Kc7 {[%clk 0:01:36.7]} 47. Kg3 {[%clk 0:00:26.7]}
47... Re3+ {[%clk 0:01:26.5]} 48. Kf2 {[%clk 0:00:27.2]} 48... Rh3 {[%clk
0:01:17.3]} 49. Rxe6 {[%clk 0:00:27.2]} 49... Rxh4 {[%clk 0:01:18.7]} 50. Kg3
{[%clk 0:00:26.5]} 50... Rg4+ {[%clk 0:01:15.4]} 51. Kf3 {[%clk 0:00:27.7]}
51... g5 {[%clk 0:01:16.8]} 52. fxg5 {[%clk 0:00:28]} 52... Rxg5 {[%clk
0:01:17.9]} 53. Kf4 {[%clk 0:00:29.6]} 53... Rg4+ {[%clk 0:01:19.3]} 54. Kxf5
{[%clk 0:00:29.9]} 54... Ra4 {[%clk 0:01:20.8]} 55. Re7+ {[%clk 0:00:28.3]}
55... Kb8 {[%clk 0:01:18.2]} 56. a6 {[%clk 0:00:25.5]} 56... bxa6 {[%clk
0:01:16.4]} 57. bxa6 {[%clk 0:00:25.4]} 57... Rxa6 {[%clk 0:01:18.3]} 58. Re8+
{[%clk 0:00:25.9]} 58... Kc7 {[%clk 0:01:19.3]} 59. Re7+ {[%clk 0:00:23.7]}
59... Kd8 {[%clk 0:01:18.7]} 60. Re6 {[%clk 0:00:23.9]} 60... Ra1 {[%clk
0:01:18]} 61. Rh6 {[%clk 0:00:23.3]} 61... Ke7 {[%clk 0:01:18.9]} 62. Ke4 {[%clk
0:00:24.4]} 62... Re1+ {[%clk 0:01:18.2]} 63. Kd3 {[%clk 0:00:25.5]} 63... Rd1+
{[%clk 0:01:19.2]} 64. Kc3 {[%clk 0:00:24]} 1/2-1/2

[Event "*** Titled Tuesday 3|2 Blitz"]
[Site "Chess.com"]
[Date "2015.08.04"]
[Round "2"]
[White "Viaje"]
[Black "lexiel"]
[Result "0-1"]
[WhiteElo "2234"]
[BlackElo "2282"]
[TimeControl "180+2"]
[EndTime "11:51:16 PDT"]
[Termination "lexiel won by checkmate"]

1. d4 {[%clk 0:03:01.9]} 1... Nf6 {[%clk 0:03:00.2]} 2. c4 {[%clk 0:03:02.5]}
2... d6 {[%clk 0:03:00.5]} 3. Nf3 {[%clk 0:03:01.8]} 3... c6 {[%clk 0:03:00]} 4.
Nc3 {[%clk 0:03:03.1]} 4... Bf5 {[%clk 0:03:00.1]} 5. Nh4 {[%clk 0:03:03.9]}
5... Bd7 {[%clk 0:02:52.6]} 6. e4 {[%clk 0:03:03.5]} 6... e5 {[%clk 0:02:53.5]}
7. Nf3 {[%clk 0:03:03.8]} 7... Bg4 {[%clk 0:02:52.3]} 8. d5 {[%clk 0:03:03.5]}
8... Be7 {[%clk 0:02:49.1]} 9. Be2 {[%clk 0:03:03.4]} 9... h6 {[%clk 0:02:46.2]}
10. Be3 {[%clk 0:03:02.6]} 10... O-O {[%clk 0:02:42.9]} 11. O-O {[%clk
0:03:02.8]} 11... c5 {[%clk 0:02:31.7]} 12. a3 {[%clk 0:03:01.7]} 12... Na6
{[%clk 0:02:24.1]} 13. Rb1 {[%clk 0:03:01.9]} 13... Nc7 {[%clk 0:02:11.7]} 14.
b4 {[%clk 0:03:01.7]} 14... b6 {[%clk 0:02:11.9]} 15. a4 {[%clk 0:03:00.7]}
15... cxb4 {[%clk 0:02:10.4]} 16. Rxb4 {[%clk 0:03:01.4]} 16... Na6 {[%clk
0:02:11.3]} 17. Rb5 {[%clk 0:02:59.6]} 17... Nd7 {[%clk 0:02:11.6]} 18. a5
{[%clk 0:02:58.4]} 18... Nac5 {[%clk 0:02:10]} 19. axb6 {[%clk 0:02:58.2]} 19...
axb6 {[%clk 0:02:10.7]} 20. Qc2 {[%clk 0:02:55]} 20... f5 {[%clk 0:02:02.3]} 21.
exf5 {[%clk 0:02:39.7]} 21... Bxf5 {[%clk 0:02:02.2]} 22. Qd2 {[%clk 0:02:40.4]}
22... Qe8 {[%clk 0:01:42.5]} 23. Qb2 {[%clk 0:01:48.1]} 23... Qg6 {[%clk
0:01:41.2]} 24. Nd2 {[%clk 0:01:48.7]} 24... Bh3 {[%clk 0:01:37]} 25. g3 {[%clk
0:01:48.6]} 25... Bxf1 {[%clk 0:01:36]} 26. Bxf1 {[%clk 0:01:50.5]} 26... Bg5
{[%clk 0:01:32.9]} 27. Bxg5 {[%clk 0:01:47.5]} 27... hxg5 {[%clk 0:01:25.1]} 28.
Bg2 {[%clk 0:01:40.8]} 28... Qd3 {[%clk 0:01:21.6]} 29. Nce4 {[%clk 0:01:37.1]}
29... Qe2 {[%clk 0:01:03.4]} 30. Bf1 {[%clk 0:01:25.6]} 30... Qe1 {[%clk
0:01:03.8]} 31. Qb1 {[%clk 0:01:22.1]} 31... Qxb1 {[%clk 0:00:42.2]} 32. Rxb1
{[%clk 0:01:24]} 32... Ra2 {[%clk 0:00:42.5]} 33. Bh3 {[%clk 0:01:19.2]} 33...
Nxe4 {[%clk 0:00:35.7]} 34. Nxe4 {[%clk 0:01:19.3]} 34... Nc5 {[%clk 0:00:35]}
35. Nxd6 {[%clk 0:01:11.7]} 35... Rfxf2 {[%clk 0:00:30.1]} 36. Rxb6 {[%clk
0:01:11.6]} 36... Rfd2 {[%clk 0:00:16.1]} 37. Rc6 {[%clk 0:00:51.7]} 37... Ra1+
{[%clk 0:00:11.8]} 38. Bf1 {[%clk 0:00:52.6]} 38... Nd3 {[%clk 0:00:11.4]} 39.
Rc8+ {[%clk 0:00:47.7]} 39... Kh7 {[%clk 0:00:12]} 40. Rf8 {[%clk 0:00:45.4]}
40... g4 {[%clk 0:00:11.2]} 41. Ne4 {[%clk 0:00:44.4]} 41... Rc2 {[%clk
0:00:07.7]} 42. d6 {[%clk 0:00:40]} 42... Ne1 {[%clk 0:00:07.9]} 43. d7 {[%clk
0:00:33.1]} 43... Nf3+ {[%clk 0:00:07.8]} 44. Rxf3 {[%clk 0:00:33.4]} 44... gxf3
{[%clk 0:00:09.7]} 45. Nf2 {[%clk 0:00:32.5]} 45... Rd2 {[%clk 0:00:10]} 46. Ne4
{[%clk 0:00:11]} 46... Rg2+ {[%clk 0:00:10.4]} 47. Kh1 {[%clk 0:00:12.2]} 47...
Rxf1# {[%clk 0:00:11.2]} 0-1

[Event "*** Titled Tuesday 3|2 Blitz"]
[Site "Chess.com"]
[Date "2015.08.04"]
[Round "2"]
[White "PauloCesarCosta"]
[Black "talaicito"]
[Result "0-1"]
[WhiteElo "1998"]
[BlackElo "2011"]
[TimeControl "180+2"]
[EndTime "11:51:18 PDT"]
[Termination "talaicito won by checkmate"]

1. Nf3 {[%clk 0:02:59.2]} 1... d5 {[%clk 0:02:59.7]} 2. c4 {[%clk 0:03:00]} 2...
c6 {[%clk 0:02:59.4]} 3. d4 {[%clk 0:03:00.9]} 3... Nf6 {[%clk 0:02:56.9]} 4. e3
{[%clk 0:03:01.7]} 4... e6 {[%clk 0:02:51.2]} 5. Nbd2 {[%clk 0:03:00.6]} 5...
Be7 {[%clk 0:02:50.9]} 6. Bd3 {[%clk 0:03:01.5]} 6... O-O {[%clk 0:02:51.2]} 7.
O-O {[%clk 0:03:02.4]} 7... b6 {[%clk 0:02:48.2]} 8. e4 {[%clk 0:03:03.3]} 8...
dxc4 {[%clk 0:02:35.4]} 9. Nxc4 {[%clk 0:03:00.9]} 9... Bb7 {[%clk 0:02:35.5]}
10. Nce5 {[%clk 0:02:56.5]} 10... c5 {[%clk 0:02:21.4]} 11. dxc5 {[%clk
0:02:46.8]} 11... Nxe4 {[%clk 0:02:06.4]} 12. cxb6 {[%clk 0:02:26.7]} 12... Qxb6
{[%clk 0:01:59.9]} 13. Qe2 {[%clk 0:02:23.9]} 13... Nf6 {[%clk 0:01:43.5]} 14.
Be3 {[%clk 0:02:21.2]} 14... Qa5 {[%clk 0:01:41.4]} 15. a3 {[%clk 0:02:09.6]}
15... Nbd7 {[%clk 0:01:32]} 16. b4 {[%clk 0:02:06.2]} 16... Bxf3 {[%clk
0:01:22.6]} 17. Nxf3 {[%clk 0:01:58.6]} 17... Qh5 {[%clk 0:01:23.2]} 18. Bf4
{[%clk 0:01:43.8]} 18... Nd5 {[%clk 0:01:18.6]} 19. Bg3 {[%clk 0:01:38.3]} 19...
Bf6 {[%clk 0:01:15.4]} 20. Rac1 {[%clk 0:01:36.9]} 20... Rac8 {[%clk 0:00:55.3]}
21. Be4 {[%clk 0:01:36.2]} 21... N7b6 {[%clk 0:00:52.6]} 22. Bxd5 {[%clk
0:01:23.2]} 22... Nxd5 {[%clk 0:00:53.2]} 23. h3 {[%clk 0:01:18.6]} 23... h6
{[%clk 0:00:51.2]} 24. Rfd1 {[%clk 0:01:18.1]} 24... Nc3 {[%clk 0:00:51.2]} 25.
Qa6 {[%clk 0:01:05.6]} 25... Rcd8 {[%clk 0:00:13.7]} 26. Rxd8 {[%clk 0:01:02.6]}
26... Rxd8 {[%clk 0:00:14.7]} 27. Qxa7 {[%clk 0:00:56.8]} 27... Ne2+ {[%clk
0:00:15.3]} 28. Kh2 {[%clk 0:00:55.3]} 28... Nxc1 {[%clk 0:00:16.3]} 29. Qc7
{[%clk 0:00:56.7]} 29... Qd5 {[%clk 0:00:15.5]} 30. Qxc1 {[%clk 0:00:53.7]}
30... g5 {[%clk 0:00:14.8]} 31. Qc7 {[%clk 0:00:47.2]} 31... h5 {[%clk
0:00:14.7]} 32. a4 {[%clk 0:00:45.3]} 32... g4 {[%clk 0:00:14.9]} 33. hxg4
{[%clk 0:00:45.6]} 33... hxg4 {[%clk 0:00:15.3]} 34. Nh4 {[%clk 0:00:44.1]}
34... Qh5 {[%clk 0:00:15.4]} 35. Qc5 {[%clk 0:00:35.7]} 35... Qh6 {[%clk
0:00:14.1]} 36. Qc4 {[%clk 0:00:20.8]} 36... Bxh4 {[%clk 0:00:14.7]} 37. Qxg4+
{[%clk 0:00:21.6]} 37... Bg5+ {[%clk 0:00:13]} 38. Kg1 {[%clk 0:00:17.8]} 38...
f5 {[%clk 0:00:13.4]} 39. Qf3 {[%clk 0:00:16.6]} 39... f4 {[%clk 0:00:14.4]} 40.
Bxf4 {[%clk 0:00:06.9]} 40... Bxf4 {[%clk 0:00:15.2]} 41. Qg4+ {[%clk
0:00:08.8]} 41... Kf7 {[%clk 0:00:15.7]} 42. g3 {[%clk 0:00:09.2]} 42... Bg5
{[%clk 0:00:15.7]} 43. Qf3+ {[%clk 0:00:10.1]} 43... Bf6 {[%clk 0:00:16.7]} 44.
Qb7+ {[%clk 0:00:10.4]} 44... Kg6 {[%clk 0:00:17.1]} 45. Kg2 {[%clk 0:00:11.1]}
45... Qg5 {[%clk 0:00:17.5]} 46. Qe4+ {[%clk 0:00:11.8]} 46... Qf5 {[%clk
0:00:18.8]} 47. Qc4 {[%clk 0:00:11]} 47... Qd5+ {[%clk 0:00:19.7]} 48. Qxd5
{[%clk 0:00:10.5]} 48... exd5 {[%clk 0:00:21]} 49. b5 {[%clk 0:00:12.4]} 49...
d4 {[%clk 0:00:22.2]} 50. b6 {[%clk 0:00:13.4]} 50... d3 {[%clk 0:00:23.4]} 51.
b7 {[%clk 0:00:14.3]} 51... d2 {[%clk 0:00:24.5]} 52. b8=Q {[%clk 0:00:16.2]}
52... Rxb8 {[%clk 0:00:25.4]} 53. a5 {[%clk 0:00:17.1]} 53... d1=Q {[%clk
0:00:25.7]} 54. a6 {[%clk 0:00:19]} 54... Qd5+ {[%clk 0:00:26.6]} 55. Kg1 {[%clk
0:00:19.5]} 55... Rb1+ {[%clk 0:00:27.5]} 56. Kh2 {[%clk 0:00:19.3]} 56... Qh1#
{[%clk 0:00:28.4]} 0-1